lending/lending_fUSD_20250318
["ID","MTS","AMOUNT","RATE_DAILY","PERIOD"]
[356373897,1742339599241,-500.0,0.00041095,2]
[356373898,1742339599251,-557.01045595,0.00041095,60]
[356373899,1742339599260,-214.66238173,0.00041095,120]
[356373900,1742339599270,-1026.81,0.00041095,120]
[356373901,1742339599280,-500.0,0.00041095,120]
[356373902,1742339599290,-1290.9,0.00041095,120]
[356373903,1742339599300,-500.0,0.00041095,12]
[356373904,1742339599310,-660.95,0.00041095,12]
[356373905,1742339599319,-1089.18,0.00041095,12]
[356373906,1742339599329,-1280.18,0.00041095,12]
[356373907,1742339599338,-705.65,0.00041095,12]
[356373908,1742339599348,-839.95,0.00041095,12]
[356373909,1742339599358,-586.59,0.00041095,12]
[356373910,1742339599368,-500.0,0.00041095,12]
[356373911,1742339599378,-659.86,0.00041095,12]
[356373912,1742339599387,-500.0,0.00041095,12]
[356373913,1742339599397,-781.58,0.00041095,12]
[356373914,1742339599407,-578.43,0.00041095,12]
[356373915,1742339599416,-716.41,0.00041095,12]
[356373916,1742339599426,-875.76,0.00041095,12]
[356373917,1742339599436,-1293.1,0.00041095,12]
[356373918,1742339599446,-554.73,0.00041095,12]
[356373919,1742339599455,-500.0,0.00041095,12]
[356373920,1742339599464,-500.0,0.00041095,12]
[356373921,1742339599474,-887.4,0.00041095,12]
[356373922,1742339599484,-933.35,0.00041095,12]
[356373923,1742339599494,-645.27,0.00041095,12]
[356373924,1742339599504,-1270.34,0.00041095,12]
[356373925,1742339599514,-635.6,0.00041095,12]
[356373926,1742339599523,-546.63,0.00041095,12]
[356373927,1742339599532,-353.49662029,0.00041095,12]
[356373928,1742339599542,-1007.61,0.00041095,12]
[356373929,1742339599552,-616.02,0.00041095,12]
[356373930,1742339599561,-686.76,0.00041095,12]
[356373931,1742339599571,-531.32,0.00041095,12]
[356373932,1742339599581,-601.48,0.00041095,12]
[356373933,1742339599591,-567.63,0.00041095,12]
[356373934,1742339599601,-500.0,0.00041095,12]
[356373935,1742339599610,-500.0,0.00041095,12]
[356373936,1742339599620,-500.0,0.00041095,12]
[356373937,1742339599630,-507.87053481,0.00041095,12]
[356373938,1742339599640,-963.46,0.00041095,12]
[356373939,1742339599650,-500.0,0.00041095,12]
[356373940,1742339599659,-815.63,0.00041095,12]
[356373941,1742339599668,-500.0,0.00041095,12]
[356373942,1742339599678,-500.37,0.00041095,12]
[356373943,1742339599687,-546.76,0.00041095,12]
[356373944,1742339599697,-213.50279664,0.00041095,12]
[356373945,1742339599706,-486.87667131,0.00041095,12]
[356373946,1742339599717,-599.5,0.00041095,12]
[356373947,1742339599727,-729.58,0.00041095,12]
[356373948,1742339599736,-922.39,0.00041095,12]
[356373949,1742339599746,-1163.14,0.00041095,12]
[356373950,1742339599757,-875.92,0.00041095,30]
[356373951,1742339599768,-750.87,0.00041095,12]
[356373952,1742339599778,-1410.05,0.00041095,12]
[356373953,1742339599787,-510.0,0.00041095,12]
[356373954,1742339599797,-541.9,0.00041095,12]
[356373955,1742339599809,-2100.21,0.00041095,12]
[356373956,1742339599820,-819.72,0.00041095,12]
[356373957,1742339599830,-500.0,0.00041095,12]
[356373958,1742339599840,-868.85,0.00041095,12]
[356373959,1742339599851,-500.0,0.00041095,12]
[356373960,1742339599860,-832.99,0.00041095,12]
[356373961,1742339599871,-500.0,0.00041095,12]
[356373962,1742339599882,-1487.67,0.00041095,12]
[356373963,1742339599892,-1565.380344,0.00041095,12]
[356373964,1742339599902,-151.731954,0.00041095,12]
[356373965,1742339599912,-516.01505512,0.00041095,12]
[356373966,1742339599923,-156.823057,0.00041095,12]
[356373967,1742339599933,-728.98,0.00041095,12]
[356373968,1742339599943,-915.45,0.00041095,12]
[356373969,1742339599952,-523.14,0.00041095,12]
[356373970,1742339599962,-500.0,0.00041095,12]
[356373971,1742339599972,-415.53198,0.00041095,12]
[356373972,1742339599982,-571.54,0.00041095,12]
[356373973,1742339599991,-547.0,0.00041095,12]
[356373974,1742339600001,-1000.0,0.00041095,12]
[356373975,1742339600012,-1000.0,0.00041095,12]
[356373976,1742339600022,-1000.0,0.00041095,12]
[356373977,1742339600032,-1000.0,0.00041095,12]
[356373978,1742339600041,-1000.0,0.00041095,12]
[356373979,1742339600051,-1000.0,0.00041095,12]
[356373980,1742339600060,-1037.42212079,0.00041095,12]
[356373981,1742339600071,-1579.021524,0.00041095,12]
[356373982,1742339600081,-540.14,0.00041095,12]
[356373983,1742339600091,-507.06,0.00041095,12]
[356373984,1742339600100,-500.0,0.00041095,12]
[356373985,1742339600110,-1406.95,0.00041095,12]
[356373986,1742339600120,-1265.92,0.00041095,12]
[356373987,1742339600130,-583.92,0.00041095,12]
[356373988,1742339600140,-819.59,0.00041095,12]
[356373989,1742339600150,-500.0,0.00041095,12]
[356373990,1742339600160,-1112.86,0.00041095,12]
[356373991,1742339600170,-376.33066186,0.00041095,12]
[356373992,1742339600179,-849.05,0.00041095,12]
[356373993,1742339600189,-610.12,0.00041095,12]
[356373994,1742339600199,-500.0,0.00041095,12]
[356373995,1742339600208,-154.96977575,0.00041095,12]
[356373996,1742339600219,-966.8,0.00041095,12]
[356373997,1742339600229,-562.17,0.00041095,12]
[356373998,1742339600238,-500.0,0.00041095,12]
[356373999,1742339600248,-565.83,0.00041095,12]
[356374000,1742339600258,-897.12,0.00041095,12]
[356374001,1742339600268,-588.08,0.00041095,12]
[356374002,1742339600277,-539.17,0.00041095,12]
[356374003,1742339600287,-473.06543394,0.00041095,12]
[356374004,1742339600296,-2686.86,0.00041095,12]
[356374005,1742339600306,-956.37,0.00041095,12]
[356374006,1742339600315,-1521.69,0.00041095,7]
[356374007,1742339600325,-914.58,0.00041095,12]
[356374008,1742339600335,-500.0,0.00041095,12]
[356374009,1742339600345,-537.65,0.00041095,12]
[356374010,1742339600354,-1313.1,0.00041095,12]
[356374011,1742339600364,-894.12,0.00041095,12]
[356374012,1742339600373,-602.44793314,0.00041095,12]
[356374013,1742339600383,-523.64,0.00041095,12]
[356374014,1742339600393,-211.67943844,0.00041095,12]
[356374015,1742339600403,-523.91,0.00041095,12]
[356374016,1742339600412,-845.67,0.00041095,12]
[356374017,1742339600422,-250.87062459,0.00041095,12]
[356374018,1742339600431,-1156.08,0.00041095,12]
[356374019,1742339600441,-510.37,0.00041095,12]
[356374020,1742339600450,-655.83,0.00041095,12]
[356374021,1742339600460,-1175.67,0.00041095,12]
[356374022,1742339600470,-675.44,0.00041095,12]
[356374023,1742339600482,-584.29,0.00041095,12]
[356374024,1742339600492,-1360.65,0.00041095,12]
[356374025,1742339600502,-535.37,0.00041095,12]
[356374026,1742339600511,-940.73,0.00041095,12]
[356374027,1742339600521,-661.64,0.00041095,12]
[356374028,1742339600530,-628.6,0.00041095,12]
[356374029,1742339600539,-872.38,0.00041095,12]
[356374030,1742339600659,-671.95,0.00041095,12]
[356374031,1742339600670,-589.35,0.00041095,12]
[356374032,1742339600680,-500.0,0.00041095,12]
[356374033,1742339600690,-500.0,0.00041095,12]
[356374034,1742339600699,-2111.58,0.00041095,12]
[356374035,1742339600708,-1118.44,0.00041095,12]
[356374036,1742339600718,-952.51,0.00041095,12]
[356374037,1742339600729,-1141.77,0.00041095,12]
[356374038,1742339600739,-509.9,0.00041095,12]
[356374039,1742339600749,-786.29,0.00041095,12]
[356374040,1742339600759,-885.74,0.00041095,12]
[356374041,1742339600768,-853.02,0.00041095,12]
[356374042,1742339600778,-500.0,0.00041095,12]
[356374043,1742339600787,-930.16,0.00041095,12]
[356374044,1742339600796,-554.71,0.00041095,12]
[356374045,1742339600808,-534.99,0.00041095,12]
[356374046,1742339600818,-1096.04,0.00041095,12]
[356374047,1742339600828,-500.0,0.00041095,12]
[356374048,1742339600838,-669.21,0.00041095,12]
[356374049,1742339600849,-2116.57,0.00041095,12]
[356374050,1742339600859,-1273.18,0.00041095,12]
[356374051,1742339600869,-662.07,0.00041095,12]
[356374052,1742339600881,-824.59,0.00041095,12]
[356374053,1742339600891,-1001.65,0.00041095,12]
[356374054,1742339600901,-865.19,0.00041095,12]
[356374055,1742339600911,-569.57,0.00041095,12]
[356374056,1742339600921,-850.25,0.00041095,12]
[356374057,1742339600931,-2025.31,0.00041095,12]
[356374058,1742339600940,-1034.97,0.00041095,12]
[356374059,1742339600950,-1125.43,0.00041095,12]
[356374060,1742339600959,-736.13,0.00041095,12]
[356374061,1742339600970,-500.0,0.00041095,12]
[356374062,1742339600982,-705.75,0.00041095,12]
[356374063,1742339600992,-1168.81,0.00041095,12]
[356374064,1742339601002,-909.53,0.00041095,12]
[356374065,1742339601012,-1214.66,0.00041095,12]
[356374066,1742339601022,-750.56,0.00041095,12]
[356374067,1742339601033,-999.43,0.00041095,12]
[356374068,1742339601043,-912.96,0.00041095,12]
[356374069,1742339601053,-628.87,0.00041095,12]
[356374070,1742339601062,-1022.31,0.00041095,12]
[356374071,1742339601072,-664.59,0.00041095,12]
[356374072,1742339601081,-970.21,0.00041095,12]
[356374073,1742339601090,-605.69,0.00041095,12]
[356374074,1742339601100,-1253.42,0.00041095,12]
[356374075,1742339601109,-1388.92,0.00041095,12]
[356374076,1742339601119,-500.0,0.00041095,12]
[356374077,1742339601130,-1024.33,0.00041095,12]
[356374078,1742339601140,-603.22,0.00041095,12]
[356374079,1742339601149,-747.21,0.00041095,12]
[356374080,1742339601159,-500.0,0.00041095,12]
[356374081,1742339601169,-1242.02,0.00041095,12]
[356374082,1742339601179,-500.0,0.00041095,120]
[356374083,1742339601188,-500.0,0.00041095,120]
[356374084,1742339601198,-500.0,0.00041095,120]
[356374085,1742339601207,-500.0,0.00041095,120]
[356374086,1742339601217,-500.0,0.00041095,120]
[356374087,1742339601227,-500.0,0.00041095,120]
[356374088,1742339601242,-843.17,0.00041095,12]
[356374089,1742339601252,-535.11,0.00041095,12]
[356374090,1742339601261,-631.84507598,0.00041095,120]
[356374091,1742339601271,-532.91,0.00041095,12]
[356374092,1742339601281,-536.51,0.00041095,7]
[356374093,1742339601291,-864.22,0.00041095,12]
[356374094,1742339601300,-321.21719733,0.00041095,12]
[356374095,1742339601310,-1425.59,0.00041095,12]
[356374096,1742339601320,-838.26,0.00041095,12]
[356374097,1742339601330,-1035.77,0.00041095,12]
[356374098,1742339601339,-1119.9,0.00041095,12]
[356374099,1742339601349,-940.64,0.00041095,12]
[356374100,1742339601358,-199.5226873,0.00041095,12]
[356374101,1742339601367,-757.19,0.00041095,12]
[356374102,1742339601377,-1602.15,0.00041095,12]
[356374103,1742339601386,-1002.8,0.00041095,12]
[356374104,1742339601396,-1331.13,0.00041095,12]
[356374105,1742339601406,-1198.43,0.00041095,12]
[356374106,1742339601416,-649.81,0.00041095,12]
[356374107,1742339601425,-999.15,0.00041095,12]
[356374108,1742339601435,-2598.97,0.00041095,12]
[356374109,1742339601444,-3644.21,0.00041095,12]
[356374110,1742339601453,-1387.99,0.00041095,12]
[356374111,1742339601462,-843.24,0.00041095,12]
[356374112,1742339601472,-2465.62,0.00041095,12]
[356374113,1742339601484,-975.0,0.00041095,12]
[356374114,1742339601494,-609.77,0.00041095,12]
[356374115,1742339601504,-974.58,0.00041095,12]
[356374116,1742339601513,-1078.91,0.00041095,12]
[356374117,1742339601523,-2236.78,0.00041095,12]
[356374118,1742339601532,-1919.16,0.00041095,12]
[356374119,1742339601541,-2066.04,0.00041095,12]
[356374120,1742339601551,-1744.56,0.00041095,12]
[356374121,1742339601560,-924.09,0.00041095,12]
[356374122,1742339601569,-965.89,0.00041095,12]
[356374123,1742339601579,-2170.13,0.00041095,7]
[356374124,1742339601588,-630.53,0.00041095,12]
[356374125,1742339601598,-4236.85,0.00041095,12]
[356374126,1742339601607,-701.55,0.00041095,12]
[356374127,1742339601617,-2364.63,0.00041095,12]
[356374128,1742339601626,-2071.16,0.00041095,12]
[356374129,1742339601636,-940.24,0.00041095,12]
[356374130,1742339601646,-1084.3,0.00041095,12]
[356374131,1742339601655,-833.55,0.00041095,12]
[356374132,1742339601664,-1166.33,0.00041095,12]
[356374133,1742339601674,-1018.16,0.00041095,12]
[356374134,1742339601683,-3791.02,0.00041095,12]
[356374135,1742339601692,-722.87,0.00041095,12]
[356374136,1742339601701,-591.18,0.00041095,12]
[356374137,1742339601711,-627.35,0.00041095,12]
[356374138,1742339601720,-433.99,0.00041095,12]
[356374139,1742339601731,-2218.35,0.00041095,12]
[356374140,1742339601740,-2207.71,0.00041095,12]
[356374141,1742339601750,-1038.13,0.00041095,12]
[356374142,1742339601759,-7286.97,0.00041095,2]
[356374143,1742339601769,-4093.1,0.00041095,12]
[356374144,1742339601778,-662.54,0.00041095,12]
[356374145,1742339601787,-617.61,0.00041095,12]
[356374146,1742339601797,-884.25,0.00041095,12]
[356374147,1742339601806,-590.8,0.00041095,12]
[356374148,1742339601819,-568.35,0.00041095,12]
[356374149,1742339601828,-2314.16,0.00041095,12]
[356374150,1742339601837,-1249.76,0.00041095,12]
[356374151,1742339601847,-605.74,0.00041095,12]
[356374152,1742339601858,-4019.27,0.00041095,12]
[356374153,1742339601867,-845.44,0.00041095,12]
[356374154,1742339601877,-1263.79,0.00041095,12]
[356374155,1742339601887,-722.51,0.00041095,12]
[356374156,1742339601897,-582.04,0.00041095,12]
[356374157,1742339601906,-1473.86,0.00041095,12]
[356374158,1742339601915,-1361.67,0.00041095,12]
[356374159,1742339601926,-841.11,0.00041095,12]
[356374160,1742339601936,-1912.63,0.00041095,12]
[356374161,1742339601946,-713.87,0.00041095,12]
[356374162,1742339601955,-714.31,0.00041095,12]
[356374163,1742339601964,-635.53,0.00041095,12]
[356374164,1742339601974,-1883.04,0.00041095,12]
[356374165,1742339601985,-5988.8,0.00041095,12]
[356374166,1742339601995,-2180.97,0.00041095,10]
[356374167,1742339602004,-1955.72,0.00041095,12]
[356374168,1742339602014,-6906.57,0.00041095,12]
[356374169,1742339602023,-2131.38,0.00041095,12]
[356374170,1742339602032,-713.4,0.00041095,12]
[356374171,1742339602041,-1357.37,0.00041095,12]
[356374172,1742339602050,-758.94,0.00041095,12]
[356374173,1742339602059,-262.82616938,0.00041095,12]
[356374174,1742339602069,-517.02,0.00041095,12]
[356374175,1742339602078,-1496.75,0.00041095,12]
[356374176,1742339602087,-1214.53,0.00041095,12]
[356374177,1742339602096,-500.0,0.00041095,12]
[356374178,1742339602106,-2414.38,0.00041095,12]
[356374179,1742339602115,-1375.9,0.00041095,12]
[356374180,1742339602124,-377.5678449,0.00041095,12]
[356374181,1742339602133,-1974.79,0.00041095,12]
[356374182,1742339602142,-925.56,0.00041095,12]
[356374183,1742339602152,-712.94,0.00041095,12]
[356374184,1742339602161,-839.12,0.00041095,12]
[356374185,1742339602171,-767.88,0.00041095,12]
[356374186,1742339602180,-1067.84,0.00041095,12]
[356374187,1742339602190,-1426.33,0.00041095,12]
[356374188,1742339602199,-1432.86,0.00041095,12]
[356374189,1742339602208,-780.68,0.00041095,12]
[356374190,1742339602217,-1216.8,0.00041095,12]
[356374191,1742339602226,-1487.69,0.00041095,12]
[356374192,1742339602239,-1708.8,0.00041095,12]
[356374193,1742339602248,-500.0,0.00041095,12]
[356374194,1742339602257,-913.22,0.00041095,12]
[356374195,1742339602266,-1017.99,0.00041095,12]
[356374196,1742339602275,-1929.03,0.00041095,12]
[356374197,1742339602284,-2290.36,0.00041095,12]
[356374198,1742339602293,-902.37,0.00041095,12]
[356374199,1742339602302,-1430.23,0.00041095,12]
[356374200,1742339602311,-1072.64,0.00041095,12]
[356374201,1742339602321,-674.04,0.00041095,12]
[356374202,1742339602331,-1638.63,0.00041095,12]
[356374203,1742339602340,-1760.11,0.00041095,12]
[356374204,1742339602350,-794.12,0.00041095,12]
[356374205,1742339602359,-1045.11,0.00041095,12]
[356374206,1742339602369,-682.57,0.00041095,12]
[356374207,1742339602378,-500.0,0.00041095,12]
[356374208,1742339602388,-1729.5,0.00041095,12]
[356374209,1742339602397,-1395.45,0.00041095,12]
[356374210,1742339602406,-1432.26,0.00041095,12]
[356374211,1742339602415,-1231.14,0.00041095,12]
[356374212,1742339602424,-1130.18,0.00041095,12]
[356374213,1742339602434,-1071.53,0.00041095,12]
[356374214,1742339602444,-1000.0,0.00041095,120]
[356374215,1742339602453,-10881.54,0.00041095,12]
[356374216,1742339602463,-940.53,0.00041095,12]
[356374217,1742339602472,-931.98,0.00041095,12]
[356374218,1742339602483,-643.93,0.00041095,12]
[356374219,1742339602492,-736.61,0.00041095,12]
[356374220,1742339602501,-1889.22,0.00041095,12]
[356374221,1742339602511,-380.15819029,0.00041095,12]
[356374222,1742339602520,-1912.43,0.00041095,12]
[356374223,1742339602530,-867.89,0.00041095,12]
[356374224,1742339602539,-655.9,0.00041095,12]
[356374225,1742339602549,-3492.09,0.00041095,12]
[356374226,1742339602558,-8347.58,0.00041095,12]
[356374227,1742339602567,-982.97,0.00041095,12]
[356374228,1742339602576,-793.27,0.00041095,12]
[356374229,1742339602586,-2617.2,0.00041095,12]
[356374230,1742339602595,-500.0,0.00041095,12]
[356374231,1742339602605,-2613.79,0.00041095,12]
[356374232,1742339602614,-674.83,0.00041095,12]
[356374233,1742339602623,-1198.65,0.00041095,12]
[356374234,1742339602632,-1104.92,0.00041095,12]
[356374235,1742339602641,-1351.56,0.00041095,12]
[356374236,1742339602650,-180.71261867,0.00041095,12]
[356374237,1742339602659,-573.24,0.00041095,12]
[356374238,1742339602668,-1155.96,0.00041095,12]
[356374239,1742339602678,-592.77,0.00041095,12]
[356374240,1742339602688,-819.5,0.00041095,12]
[356374241,1742339602697,-733.05,0.00041095,12]
[356374242,1742339602707,-881.57,0.00041095,12]
[356374243,1742339602716,-566.73,0.00041095,12]
[356374244,1742339602726,-678.37,0.00041095,12]
[356374245,1742339602738,-1747.47,0.00041095,12]
[356374246,1742339602748,-779.59,0.00041095,12]
[356374247,1742339602758,-700.61,0.00041095,12]
[356374248,1742339602767,-6201.97,0.00041095,12]
[356374249,1742339602777,-2724.32,0.00041095,12]
[356374250,1742339602786,-673.71,0.00041095,12]
[356374251,1742339602795,-634.03,0.00041095,12]
[356374252,1742339602809,-1388.66,0.00041095,12]
[356374253,1742339602818,-1201.66,0.00041095,12]
[356374254,1742339602828,-789.17,0.00041095,12]
[356374255,1742339602838,-765.41,0.00041095,12]
[356374256,1742339602849,-637.48,0.00041095,12]
[356374257,1742339602859,-1408.89,0.00041095,12]
[356374258,1742339602869,-500.0,0.00041095,12]
[356374259,1742339602878,-1079.25,0.00041095,12]
[356374260,1742339602889,-500.0,0.00041095,12]
[356374261,1742339602899,-629.47,0.00041095,12]
[356374262,1742339602908,-567.70208955,0.00041095,12]
[356374263,1742339602918,-500.0,0.00041095,12]
[356374264,1742339602927,-2483.39,0.00041095,12]
[356374265,1742339602935,-818.98,0.00041095,12]
[356374266,1742339602944,-8678.86,0.00041095,12]
[356374267,1742339602953,-365.3,0.00041095,12]
[356374268,1742339602962,-500.0,0.00041095,12]
[356374269,1742339602972,-1387.5,0.00041095,12]
[356374270,1742339602982,-852.66,0.00041095,12]
[356374271,1742339602991,-609.81,0.00041095,12]
[356374272,1742339603001,-1940.56,0.00041095,12]
[356374273,1742339603010,-982.22,0.00041095,12]
[356374274,1742339603019,-5124.49,0.00041095,12]
[356374275,1742339603027,-848.28,0.00041095,12]
[356374276,1742339603037,-555.67,0.00041095,12]
[356374277,1742339603046,-610.21,0.00041095,12]
[356374278,1742339603055,-797.64,0.00041095,12]
[356374279,1742339603064,-1404.74,0.00041095,12]
[356374280,1742339603073,-570.46,0.00041095,12]
[356374281,1742339603083,-626.53,0.00041095,12]
[356374282,1742339603092,-1037.27,0.00041095,12]
[356374283,1742339603102,-1010.64,0.00041095,12]
[356374284,1742339603111,-2051.57,0.00041095,12]
[356374285,1742339603120,-517.9,0.00041095,12]
[356374286,1742339603130,-698.57,0.00041095,12]
[356374287,1742339603139,-753.9,0.00041095,12]
[356374288,1742339603148,-810.35,0.00041095,12]
[356374289,1742339603157,-976.72,0.00041095,12]
[356374290,1742339603167,-816.08,0.00041095,12]
[356374291,1742339603177,-1763.99,0.00041095,12]
[356374292,1742339603186,-807.5,0.00041095,12]
[356374293,1742339603194,-974.77,0.00041095,12]
[356374294,1742339603203,-1119.31,0.00041095,12]
[356374295,1742339603213,-611.95549024,0.00041095,12]
[356374296,1742339603222,-1305.41,0.00041095,12]
[356374297,1742339603231,-764.52,0.00041095,12]
[356374298,1742339603240,-1054.67,0.00041095,12]
[356374299,1742339603249,-697.71,0.00041095,12]
[356374300,1742339603258,-784.0,0.00041095,12]
[356374301,1742339603267,-636.48,0.00041095,12]
[356374302,1742339603276,-871.68,0.00041095,12]
[356374303,1742339603286,-1505.16,0.00041095,12]
[356374304,1742339603295,-392.30911759,0.00041095,12]
[356374305,1742339603304,-239.21750076,0.00041095,12]
[356374306,1742339603313,-3544.19,0.00041095,12]
[356374307,1742339603324,-500.0,0.00041095,12]
[356374308,1742339603334,-1054.74,0.00041095,12]
[356374309,1742339603343,-3375.24,0.00041095,12]
[356374310,1742339603353,-1877.16,0.00041095,12]
[356374311,1742339603362,-1691.18,0.00041095,12]
[356374312,1742339603371,-150.0,0.00041096,10]
[356374313,1742339603380,-500.0,0.00041096,60]
[356374314,1742339603390,-20590.0,0.0004111,120]
[356374315,1742339603399,-1000.0,0.00041123,120]
[356374316,1742339603408,-1000.0,0.0004115,120]
[356374317,1742339603417,-1000.0,0.00041178,120]
[356374318,1742339603427,-151.031805,0.00041198,120]
[356374319,1742339603436,-8917.13585108,0.000412,120]
[356374320,1742339603445,-953.0,0.000412,20]
[356374321,1742339603454,-1000.0,0.00041205,120]
[356374322,1742339603463,-1000.0,0.00041232,120]
[356374323,1742339603472,-1000.0,0.0004126,120]
[356374324,1742339603482,-1000.0,0.00041287,120]
[356374325,1742339603492,-1657.99266,0.00041288,30]
[356374326,1742339603501,-1000.0,0.00041315,120]
[356374327,1742339603510,-816.6870488,0.00041342,120]
[356374328,1742339603519,-524.31716385,0.00041348,9]
[356374329,1742339603528,-500.0,0.00041369,120]
[356374330,1742339603538,-588.39,0.00041369,120]
[356374331,1742339603547,-500.0,0.00041369,120]
[356374332,1742339603556,-500.0,0.00041369,120]
[356374333,1742339603565,-500.0,0.00041369,120]
[356374334,1742339603574,-500.0,0.00041369,2]
[356374335,1742339603583,-500.0,0.00041369,120]
[356374336,1742339603592,-500.0,0.00041369,120]
[356374337,1742339603602,-513.03020457,0.00041369,120]
[356374338,1742339603611,-500.0,0.00041369,120]
[356374339,1742339603620,-500.0,0.00041369,2]
[356374340,1742339603630,-500.0,0.00041369,120]
[356374341,1742339603639,-695.53,0.00041369,120]
[356374342,1742339603648,-500.0,0.00041369,120]
[356374343,1742339603657,-500.0,0.00041369,120]
[356374344,1742339603667,-500.0,0.00041369,120]
[356374345,1742339603676,-500.0,0.00041369,120]
[356374346,1742339603685,-500.0,0.00041369,120]
[356374347,1742339603695,-500.0,0.00041369,120]
[356374348,1742339603703,-500.0,0.00041369,120]
[356374349,1742339603713,-500.0,0.00041369,120]
[356374350,1742339603722,-500.0,0.00041369,120]
[356374351,1742339603733,-500.0,0.00041369,120]
[356374352,1742339603743,-500.0,0.00041369,120]
[356374353,1742339603753,-500.0,0.00041369,120]
[356374354,1742339603763,-500.0,0.00041369,120]
[356374355,1742339603772,-500.0,0.00041369,120]
[356374356,1742339603782,-500.0,0.00041369,120]
[356374357,1742339603791,-500.0,0.00041369,120]
[356374358,1742339603800,-500.0,0.00041369,120]
[356374359,1742339603812,-599.27,0.00041369,120]
[356374360,1742339603821,-500.0,0.00041369,120]
[356374361,1742339603830,-500.0,0.00041369,120]
[356374362,1742339603839,-675.48,0.00041369,120]
[356374363,1742339603849,-500.0,0.00041369,120]
[356374364,1742339603860,-500.0,0.00041369,120]
[356374365,1742339603869,-2951.2,0.00041369,120]
[356374366,1742339603879,-3587.64,0.00041369,120]
[356374367,1742339603889,-500.0,0.00041369,120]
[356374368,1742339603899,-551.35071628,0.00041369,120]
[356374369,1742339603908,-500.0,0.00041369,120]
[356374370,1742339603918,-500.0,0.00041369,120]
[356374371,1742339603927,-500.0,0.00041369,120]
[356374372,1742339603936,-731.85,0.00041369,120]
[356374373,1742339603947,-500.0,0.00041369,120]
[356374374,1742339603956,-500.0,0.00041369,120]
[356374375,1742339603966,-500.0,0.00041369,120]
[356374376,1742339603975,-1000.25,0.00041369,120]
[356374377,1742339603986,-500.0,0.00041369,30]
[356374378,1742339603995,-500.0,0.00041369,120]
[356374379,1742339604006,-500.0,0.00041369,120]
[356374380,1742339604016,-500.0,0.00041369,120]
[356374381,1742339604026,-500.0,0.00041369,120]
[356374382,1742339604035,-580.13933667,0.00041369,120]
[356374383,1742339604044,-500.0,0.00041369,120]
[356374384,1742339604053,-500.0,0.00041369,120]
[356374385,1742339604062,-500.0,0.00041369,120]
[356374386,1742339604071,-500.0,0.00041369,120]
[356374387,1742339604080,-500.0,0.00041369,120]
[356374388,1742339604089,-500.0,0.00041369,120]
[356374389,1742339604099,-500.0,0.00041369,120]
[356374390,1742339604107,-506.58212653,0.00041369,120]
[356374391,1742339604116,-500.0,0.00041369,120]
[356374392,1742339604125,-509.0844971,0.00041369,120]
[356374393,1742339604134,-500.0,0.00041369,120]
[356374394,1742339604143,-500.0,0.00041369,120]
[356374395,1742339604152,-500.0,0.00041369,120]
[356374396,1742339604162,-500.0,0.00041369,120]